fUST/lending_fUST_20240920
["ID","MTS","AMOUNT","RATE_DAILY","PERIOD"]
[338629770,1726817443743,-559.402357,0.00016416,2]
[338629771,1726817443752,-559.402357,0.00016416,2]
[338629772,1726817443762,-559.402357,0.00016416,2]
[338629773,1726817443772,-559.402357,0.00016416,2]
[338629774,1726817443781,-325.06449,0.00016416,2]
[338629775,1726817443794,-325.06449,0.00016416,2]
[338629776,1726817443804,-325.06449,0.00016416,2]
[338629777,1726817443813,-325.06449,0.00016416,2]
[338629778,1726817443823,-325.06449,0.00016416,2]
[338629779,1726817443833,-325.06449,0.00016416,2]
[338629780,1726817443842,-151.0,0.00016417,2]
[338629781,1726817443852,-151.0,0.00016417,2]
[338629783,1726817444039,-151.0,0.00016417,2]
[338629784,1726817444052,-559.402357,0.00016417,2]
[338629785,1726817444061,-559.402357,0.00016417,2]
[338629786,1726817444070,-325.06449,0.00016417,2]
[338629787,1726817444079,-325.06449,0.00016417,2]
[338629788,1726817444089,-151.0,0.00016418,2]
[338629789,1726817444098,-170.877991,0.00016418,2]
[338629790,1726817444107,-151.0,0.00016418,2]
[338629791,1726817444120,-559.402357,0.00016418,2]
[338629792,1726817444130,-559.402357,0.00016418,2]
[338629793,1726817444148,-559.402357,0.00016418,2]
[338629794,1726817444157,-559.402357,0.00016418,2]
[338629795,1726817444166,-325.06449,0.00016418,2]
[338629796,1726817444176,-325.06449,0.00016418,2]
[338629797,1726817444185,-325.06449,0.00016418,2]
[338629798,1726817444195,-325.06449,0.00016418,2]
[338629799,1726817444204,-1998.69973651,0.00016427,2]
[338629800,1726817444213,-155.524285,0.00016427,2]
[338629801,1726817444223,-254.216665,0.00016427,2]
[338629802,1726817444233,-151.0,0.00016427,2]
[338629803,1726817444243,-151.0,0.00016427,2]
[338629804,1726817444252,-151.0,0.00016427,2]
[338629805,1726817444261,-240.369369,0.00016427,2]
[338629806,1726817444271,-240.369369,0.00016427,2]
[338629807,1726817444280,-240.369369,0.00016427,2]
[338629808,1726817444290,-240.369369,0.00016427,2]
[338629809,1726817444303,-151.0,0.00016427,2]
[338629810,1726817444312,-151.0,0.00016427,2]
[338629811,1726817444322,-151.0,0.00016428,2]
[338629812,1726817444331,-151.0,0.00016428,2]
[338629814,1726817444341,-151.0,0.00016428,2]
[338629815,1726817444351,-151.0,0.00016428,2]
[338629816,1726817444361,-151.0,0.00016428,2]
[338629817,1726817444370,-151.0,0.00016428,2]
[338629818,1726817444379,-151.0,0.00016428,2]
[338629819,1726817444388,-187.80732,0.00016428,2]
[338629820,1726817444398,-151.0,0.00016428,2]
[338629821,1726817444408,-151.0,0.00016428,2]
[338629822,1726817444417,-151.0,0.00016428,2]
[338629823,1726817444426,-258.920558,0.00016428,2]
[338629824,1726817444435,-240.369369,0.00016428,2]
[338629825,1726817444444,-240.369369,0.00016428,2]
[338629826,1726817444454,-240.369369,0.00016428,2]
[338629827,1726817444465,-240.369369,0.00016428,2]
[338629828,1726817444474,-240.369369,0.00016428,2]
[338629829,1726817444483,-240.369369,0.00016428,2]
[338629830,1726817444492,-151.0,0.00016428,2]
[338629831,1726817444502,-151.0,0.00016428,2]
[338629832,1726817444511,-559.402357,0.00016428,2]
[338629833,1726817444521,-559.402357,0.00016428,2]
[338629834,1726817444530,-325.06449,0.00016428,2]
[338629835,1726817444539,-325.06449,0.00016428,2]
[338629836,1726817444550,-61970.9768956,0.00016428,2]
[338629837,1726817444560,-151.0,0.00016437,2]
[338629838,1726817444569,-151.0,0.00016438,2]
[338629839,1726817444579,-191.82527,0.00016438,2]
[338629840,1726817444588,-151.0,0.00016438,2]
[338629841,1726817444598,-151.0,0.00016438,2]
[338629842,1726817444609,-151.0,0.00016438,2]
[338629843,1726817444620,-151.0,0.00016438,2]
[338629844,1726817444629,-151.0,0.00016438,2]
[338629845,1726817444640,-151.0,0.00016438,2]
[338629846,1726817444649,-270.908452,0.00016438,2]
[338629847,1726817444658,-500.0,0.00016438,2]
[338629848,1726817444668,-500.0,0.00016438,2]
[338629849,1726817444677,-500.0,0.00016438,2]
[338629850,1726817444686,-500.0,0.00016438,2]
[338629851,1726817444696,-722.77,0.00016438,2]
[338629852,1726817444705,-500.0,0.00016438,2]
[338629853,1726817444714,-672.17,0.00016438,2]
[338629854,1726817444724,-505.90082269,0.00016438,2]
[338629855,1726817444734,-500.0,0.00016438,2]
[338629856,1726817444744,-505.55579703,0.00016438,2]
[338629857,1726817444754,-1077.27,0.00016438,2]
[338629858,1726817444763,-500.0,0.00016438,2]
[338629859,1726817444772,-500.0,0.00016438,2]
[338629860,1726817444782,-500.0,0.00016438,2]
[338629861,1726817444791,-500.0,0.00016438,2]
[338629862,1726817444811,-500.0,0.00016438,2]
[338629863,1726817444822,-558.34,0.00016438,2]
[338629864,1726817444832,-500.0,0.00016438,2]
[338629865,1726817444842,-151.0,0.00016438,2]
[338629866,1726817444853,-151.0,0.00016438,2]
[338629867,1726817444862,-151.0,0.00016438,2]
[338629868,1726817444873,-151.0,0.00016438,2]
[338629869,1726817444883,-500.0,0.00016438,2]
[338629870,1726817444894,-500.0,0.00016438,2]
[338629871,1726817444903,-500.0,0.00016438,2]
[338629872,1726817444913,-502.12666795,0.00016438,2]
[338629873,1726817444922,-500.0,0.00016438,2]
[338629874,1726817444933,-500.0,0.00016438,2]
[338629875,1726817444943,-500.0,0.00016438,2]
[338629876,1726817444952,-500.0,0.00016438,2]
[338629877,1726817444963,-500.0,0.00016438,2]
[338629878,1726817444972,-500.0,0.00016438,2]
[338629879,1726817444982,-748.64,0.00016438,2]
[338629880,1726817444991,-500.0,0.00016438,2]
[338629881,1726817445001,-555.1,0.00016438,2]
[338629882,1726817445010,-500.0,0.00016438,2]
[338629883,1726817445020,-500.0,0.00016438,2]
[338629884,1726817445029,-139.8291594,0.00016438,2]
[338629885,1726817445047,-289.6465188,0.00016438,2]
[338629886,1726817445063,-70.5243218,0.00016438,2]
[338629887,1726817445072,-500.0,0.00016438,2]
[338629888,1726817445081,-500.0,0.00016438,2]
[338629889,1726817445090,-505.40457799,0.00016438,2]
[338629890,1726817445099,-500.0,0.00016438,2]
[338629891,1726817445109,-500.0,0.00016438,2]
[338629892,1726817445118,-531.37850456,0.00016438,2]
[338629893,1726817445126,-479.33147991,0.00016438,2]
[338629894,1726817445154,-20.66852009,0.00016438,2]
[338629895,1726817445163,-514.44,0.00016438,2]
[338629896,1726817445172,-261.70772774,0.00016438,2]
[338629897,1726817445184,-263.60227226,0.00016438,2]
[338629898,1726817445193,-0.86397802,0.00016438,2]
[338629899,1726817445208,-150.13602198,0.00016438,2]
[338629900,1726817445217,-151.0,0.00016438,2]
[338629901,1726817445226,-151.0,0.00016438,2]
[338629902,1726817445235,-500.0,0.00016438,2]
[338629903,1726817445245,-500.0,0.00016438,2]
[338629904,1726817445254,-500.0,0.00016438,2]
[338629905,1726817445263,-833.34,0.00016438,2]
[338629906,1726817445275,-500.0,0.00016438,2]
[338629907,1726817445286,-500.0,0.00016438,2]
[338629908,1726817445300,-500.0,0.00016438,2]
[338629909,1726817445310,-500.0,0.00016438,2]
[338629910,1726817445319,-500.0,0.00016438,2]
[338629911,1726817445328,-500.0,0.00016438,2]
[338629912,1726817445338,-336.45697618,0.00016438,2]
[338629913,1726817445347,-500.0,0.00016438,2]
[338629914,1726817445357,-500.0,0.00016438,2]
[338629915,1726817445366,-500.0,0.00016438,2]
[338629916,1726817445375,-500.0,0.00016438,2]
[338629917,1726817445384,-500.0,0.00016438,2]
[338629918,1726817445393,-657.22,0.00016438,2]
[338629919,1726817445402,-500.0,0.00016438,2]
[338629920,1726817445411,-219.49,0.00016438,2]
[338629921,1726817445420,-55.68961545,0.00016438,2]
[338629928,1726817446304,-261.81,0.00016438,2]
[338629929,1726817454477,150.112233,0.000139,2]
[338629930,1726817454834,150.112233,0.000135,2]
[338629931,1726817455162,150.112233,0.00013,2]
[338629958,1726818257194,200.0,0.0001264,2]
[338629959,1726818275156,500.0,0.00013,2]
[338629960,1726818298396,200.0,0.000135,2]
[338629961,1726818311130,500.0,0.000139,2]
[338629962,1726818327991,500.0,0.00014,2]
[338629964,1726818363203,300.0,0.00014,2]
[338629965,1726818375689,300.0,0.00014,2]
[338629973,1726818472034,183.79302,0.00013411,2]
[338629974,1726818567214,-300.0,0.00014053,2]
[338629975,1726818567238,-191.57225541,0.00014053,2]
[338630013,1726818634798,-300.0,0.00014053,2]
[338630014,1726818634808,-300.0,0.00014053,2]
[338630015,1726818634817,-24900.0,0.00014054,2]
[338630016,1726818634828,-150.112233,0.000144,2]
[338630017,1726818634837,-164.941853,0.00014636,2]
[338630018,1726818634846,-164.941853,0.000147,2]
[338630019,1726818634855,-164.941853,0.00014763,2]
[338630020,1726818634865,-150.112233,0.000148,2]
[338630021,1726818634875,-164.941853,0.00014827,2]
[338630022,1726818634884,-164.941853,0.0001489,2]
[338630023,1726818634894,-500.0,0.000149,2]
[338630024,1726818634903,-700.36377687,0.00014921,2]
[338630025,1726818634912,-164.941853,0.00014954,2]
[338630026,1726818634922,-164.941853,0.00015017,2]
[338630027,1726818634931,-164.941853,0.00015081,2]
[338630028,1726818634940,-164.941853,0.00015145,2]
[338630029,1726818634951,-164.941853,0.00015208,2]
[338630030,1726818634961,-164.941853,0.00015272,2]
[338630031,1726818634971,-150.112233,0.000153,2]
[338630032,1726818634981,-164.941853,0.00015335,2]
[338630033,1726818634990,-420.0,0.00015395,2]
[338630034,1726818635000,-164.941853,0.00015399,2]
[338630035,1726818635009,-420.0,0.00015459,2]
[338630036,1726818635020,-153.0,0.00015616,2]
[338630037,1726818635031,-153.0,0.00015616,2]
[338630038,1726818635041,-208.8377925,0.00015678,2]
[338630039,1726818635052,-208.8377925,0.00015678,2]
[338630040,1726818635061,-208.8377925,0.00015678,2]
[338630041,1726818635070,-208.8377925,0.00015678,2]
[338630042,1726818635079,-208.8377925,0.00015678,2]
[338630043,1726818635089,-208.2477915,0.00015678,2]
[338630044,1726818635098,-150.112233,0.000157,2]
[338630045,1726818635108,-1943.17409859,0.000159,2]
[338630046,1726818635119,-647.56503011,0.00016,2]
[338630047,1726818635129,-1000.0,0.00016,2]
[338630048,1726818635139,-1000.0,0.00016,2]
[338630049,1726818635150,-1001.0,0.00016,2]
[338630050,1726818635160,-212.29,0.00016,2]
[338630051,1726818635171,-620.03485699,0.00016024,2]
[338630052,1726818635180,-153.0,0.00016164,2]
[338630053,1726818635191,-153.0,0.00016164,2]
[338630054,1726818635201,-153.0,0.00016164,2]
[338630055,1726818635213,-306.343668,0.00016164,2]
[338630056,1726818635223,-150.112233,0.000162,2]
[338630057,1726818635232,-7139.2745635,0.00016291,2]
[338630058,1726818635243,-1492.42454433,0.00016305,2]
[338630059,1726818635253,-1000.0,0.00016317,2]
[338630060,1726818635262,-151.0,0.00016395,2]
[338630061,1726818635272,-151.0,0.00016395,2]
[338630062,1726818635281,-151.0,0.00016395,2]
[338630063,1726818635290,-151.0,0.00016395,2]
[338630064,1726818635299,-151.0,0.00016395,2]
[338630065,1726818635309,-271.496581,0.00016395,2]
[338630066,1726818635319,-440.62499183,0.00016395,2]
[338630067,1726818635328,-500.0,0.00016395,2]
[338630068,1726818635338,-500.0,0.00016395,2]
[338630069,1726818635351,-203.40642086,0.00016395,2]
[338630070,1726818635360,-500.0,0.00016395,2]
[338630071,1726818635369,-500.0,0.00016395,2]
[338630072,1726818635379,-342.93199037,0.00016395,2]
[338630073,1726818635390,-500.0,0.00016395,2]
[338630074,1726818635399,-430.68171309,0.00016395,2]
[338630075,1726818635408,-500.0,0.00016395,2]
[338630076,1726818635420,-500.0,0.00016395,2]
[338630077,1726818635430,-500.0,0.00016395,2]
[338630078,1726818635439,-500.0,0.00016395,2]
[338630079,1726818635448,-530.92058841,0.00016395,2]
[338630080,1726818635458,-500.0,0.00016395,2]
[338630081,1726818635467,-2270.46786644,0.00016395,2]
[338630082,1726818635476,-500.0,0.00016395,2]
[338630083,1726818635486,-389.68280502,0.00016395,2]
[338630084,1726818635496,-500.0,0.00016395,2]
[338630085,1726818635506,-500.0,0.00016395,2]
[338630086,1726818635516,-2270.46786644,0.00016395,2]
[338630087,1726818635526,-500.0,0.00016395,2]
[338630088,1726818635535,-2270.46786644,0.00016395,2]
[338630089,1726818635544,-394.51927373,0.00016395,2]
[338630090,1726818635554,-500.0,0.00016395,2]
[338630091,1726818635564,-2270.46786644,0.00016395,2]
[338630092,1726818635575,-500.0,0.00016395,2]
[338630093,1726818635583,-2270.46786644,0.00016395,2]
[338630094,1726818635593,-2270.46786644,0.00016395,2]
[338630095,1726818635602,-2270.46786644,0.00016395,2]
[338630096,1726818635611,-500.0,0.00016395,2]
[338630097,1726818635621,-2270.46786644,0.00016395,2]
[338630098,1726818635630,-183.56316374,0.00016395,2]
[338630099,1726818635639,-2270.46786644,0.00016395,2]
[338630100,1726818635649,-500.0,0.00016395,2]
[338630101,1726818635658,-2270.46786644,0.00016395,2]
[338630102,1726818635668,-500.0,0.00016395,2]
[338630103,1726818635677,-2270.46786644,0.00016395,2]
[338630104,1726818635687,-500.0,0.00016395,2]
[338630105,1726818635696,-2270.46786644,0.00016395,2]
[338630106,1726818635705,-500.0,0.00016395,2]
[338630107,1726818635715,-500.0,0.00016395,2]
[338630108,1726818635724,-500.0,0.00016395,2]
[338630109,1726818635734,-2270.46786644,0.00016395,2]
[338630110,1726818635743,-500.0,0.00016395,2]
[338630111,1726818635752,-2270.46786644,0.00016395,2]
[338630112,1726818635762,-500.0,0.00016395,2]
[338630113,1726818635771,-2270.46786644,0.00016395,2]
[338630114,1726818635781,-500.0,0.00016395,2]
[338630115,1726818635790,-2270.46786644,0.00016395,2]
[338630116,1726818635799,-500.0,0.00016395,2]
[338630117,1726818635809,-2270.46786644,0.00016395,2]
[338630118,1726818635819,-500.0,0.00016395,2]
[338630119,1726818635828,-2270.46786644,0.00016395,2]
[338630120,1726818635837,-2270.46786644,0.00016395,2]
[338630121,1726818635846,-500.0,0.00016395,2]
[338630122,1726818635855,-772.71493338,0.00016395,2]
[338630134,1726818638733,-1000.0,0.00016306,2]
[338630135,1726818638742,-1497.75293306,0.00016395,2]
[338630136,1726818638752,-500.0,0.00016395,2]
[338630137,1726818638762,-2270.46786644,0.00016395,2]
[338630138,1726818638771,-500.0,0.00016395,2]
[338630139,1726818638781,-1703.86781781,0.00016395,2]
[338630140,1726818638797,-566.60004863,0.00016395,2]
[338630141,1726818638808,-500.0,0.00016395,2]
[338630142,1726818638818,-2270.46786644,0.00016395,2]
[338630143,1726818638828,-500.0,0.00016395,2]
[338630144,1726818638838,-2270.46786644,0.00016395,2]
[338630145,1726818638848,-500.0,0.00016395,2]
[338630146,1726818638857,-2270.46786644,0.00016395,2]
[338630147,1726818638867,-500.0,0.00016395,2]
[338630148,1726818638879,-2270.46786644,0.00016395,2]
[338630149,1726818638889,-2270.46786644,0.00016395,2]
[338630150,1726818638900,-500.0,0.00016395,2]
[338630151,1726818638910,-500.0,0.00016395,2]
[338630152,1726818638920,-2270.46786644,0.00016395,2]
[338630153,1726818638930,-500.0,0.00016395,2]
[338630154,1726818638940,-2270.46786644,0.00016395,2]
[338630155,1726818638949,-500.0,0.00016395,2]
[338630156,1726818638959,-2270.46786644,0.00016395,2]
[338630157,1726818638971,-2270.46786644,0.00016395,2]
[338630158,1726818638981,-2270.46786644,0.00016395,2]
[338630159,1726818638991,-2270.46786644,0.00016395,2]
[338630160,1726818639001,-2270.46786644,0.00016395,2]
[338630161,1726818639011,-2270.46786644,0.00016395,2]
[338630162,1726818639021,-500.0,0.00016395,2]
[338630163,1726818639031,-2270.46786644,0.00016395,2]
[338630164,1726818639040,-500.0,0.00016395,2]
[338630165,1726818639050,-2270.46786644,0.00016395,2]
[338630166,1726818639059,-500.0,0.00016395,2]
[338630167,1726818639068,-2270.46786644,0.00016395,2]
[338630168,1726818639078,-2270.46786644,0.00016395,2]
[338630169,1726818639087,-500.0,0.00016395,2]
[338630170,1726818639097,-2270.46786644,0.00016395,2]
[338630171,1726818639106,-2270.46786644,0.00016395,2]
[338630172,1726818639115,-500.0,0.00016395,2]
[338630173,1726818639124,-2270.46786644,0.00016395,2]
[338630174,1726818639133,-500.0,0.00016395,2]
[338630175,1726818639143,-204.62659682,0.00016395,2]
[338630176,1726818639153,-2270.46786644,0.00016395,2]
[338630177,1726818639162,-2270.46786644,0.00016395,2]
[338630178,1726818639172,-2270.46786644,0.00016395,2]
[338630179,1726818639182,-2270.46786644,0.00016395,2]
[338630180,1726818639191,-2270.46786644,0.00016395,2]
[338630181,1726818639202,-2270.46786644,0.00016395,2]
[338630182,1726818639212,-2270.46786644,0.00016395,2]
[338630183,1726818639222,-2270.46786644,0.00016395,2]
[338630184,1726818639232,-2270.46786644,0.00016395,2]
[338630185,1726818639242,-2270.46786644,0.00016395,2]
[338630186,1726818639251,-2270.46786644,0.00016395,2]
[338630187,1726818639261,-2270.46786644,0.00016395,2]
[338630188,1726818639271,-2270.46786644,0.00016395,2]
[338630189,1726818639280,-2270.46786644,0.00016395,2]
[338630190,1726818639290,-2270.46786644,0.00016395,2]
[338630191,1726818639300,-2270.46786644,0.00016395,2]
[338630192,1726818639309,-2270.46786644,0.00016395,2]
[338630193,1726818639319,-2270.46786644,0.00016395,2]
[338630194,1726818639328,-2270.46786644,0.00016395,2]
[338630195,1726818639338,-2270.46786644,0.00016395,2]
[338630196,1726818639351,-43492.50272281,0.00016396,5]
[338630197,1726818639360,-93591.3160529,0.00016396,2]
[338630198,1726818639370,-133485.394312,0.00016396,2]
[338630199,1726818639379,-31197.105351,0.00016397,2]
[338630200,1726818639389,-44495.1314373,0.00016397,2]
[338630201,1726818639399,-31197.105351,0.00016398,2]
[338630202,1726818639409,-44495.1314373,0.00016398,2]
[338630203,1726818639420,-167.820707,0.00016407,2]
[338630204,1726818639431,-167.820707,0.00016407,2]
[338630205,1726818639440,-151.0,0.00016407,2]
[338630206,1726818639449,-151.0,0.00016407,2]
[338630207,1726818639459,-151.0,0.00016407,2]
[338630208,1726818639468,-244.642545,0.00016407,2]
[338630209,1726818639478,-151.0,0.00016408,2]
[338630210,1726818639487,-151.0,0.00016408,2]
[338630211,1726818639497,-167.820707,0.00016408,2]
[338630212,1726818639508,-167.820707,0.00016408,2]
[338630213,1726818639517,-167.820707,0.00016408,2]
[338630214,1726818639527,-167.820707,0.00016408,2]
[338630215,1726818639537,-151.0,0.00016408,2]
[338630216,1726818639547,-151.0,0.00016416,2]
[338630217,1726818639558,-151.0,0.00016416,2]
[338630218,1726818639568,-151.0,0.00016417,2]
[338630219,1726818639577,-151.0,0.00016417,2]
[338630220,1726818639587,-151.0,0.00016417,2]
[338630221,1726818639596,-151.0,0.00016417,2]
[338630222,1726818639606,-151.0,0.00016417,2]
[338630223,1726818639616,-289.386931,0.00016417,2]
[338630224,1726818639625,-151.0,0.00016417,2]
[338630225,1726818639634,-151.0,0.00016417,2]
[338630226,1726818639643,-151.0,0.00016417,2]
[338630227,1726818639653,-239.261309,0.00016417,2]
[338630228,1726818639663,-151.0,0.00016418,2]
[338630229,1726818639672,-151.0,0.00016418,2]
[338630230,1726818639681,-151.0,0.00016418,2]
[338630231,1726818639691,-151.0,0.00016418,2]
[338630232,1726818639701,-151.0,0.00016418,2]
[338630233,1726818639710,-151.0,0.00016418,2]
[338630234,1726818639719,-151.0,0.00016418,2]
[338630235,1726818639729,-151.0,0.00016418,2]
[338630236,1726818639739,-151.0,0.00016418,2]
[338630237,1726818639749,-151.0,0.00016418,2]
[338630238,1726818639758,-151.0,0.00016418,2]
[338630239,1726818639767,-151.0,0.00016418,2]
[338630240,1726818639776,-192.146395,0.00016418,2]
[338630241,1726818639785,-62394.2107019,0.00016418,2]
[338630242,1726818639795,-88990.2628745,0.00016418,2]
[338630243,1726818639804,-151.0,0.00016428,2]
[338630244,1726818639814,-151.0,0.00016428,2]
[338630245,1726818639823,-167.820707,0.00016428,2]
[338630246,1726818639833,-167.820707,0.00016428,2]
[338630247,1726818639842,-151.0,0.00016428,2]
[338630248,1726818639852,-31197.105351,0.00016428,2]
[338630249,1726818639863,-44495.1314373,0.00016428,2]
[338630250,1726818639872,-500.97679827,0.00016437,2]
[338630251,1726818639883,-151.0,0.00016437,2]
[338630252,1726818639892,-27335.77193184,0.00016438,5]
[338630253,1726818639901,-151.0,0.00016438,2]
[338630254,1726818639911,-151.0,0.00016438,2]
[338630255,1726818639921,-151.0,0.00016438,2]
[338630256,1726818639930,-321.13787606,0.00016438,2]
[338630257,1726818639940,-500.0,0.00016438,2]
[338630258,1726818639949,-500.0,0.00016438,2]
[338630259,1726818639959,-637.53,0.00016438,2]
[338630260,1726818639969,-500.0,0.00016438,2]
[338630261,1726818639979,-836.85,0.00016438,2]
[338630262,1726818639988,-500.0,0.00016438,2]
[338630264,1726818639997,-500.0,0.00016438,2]
[338630265,1726818640007,-500.0,0.00016438,2]
[338630266,1726818640017,-151.0,0.00016438,2]
[338630267,1726818640027,-410.52708971,0.00016438,2]
[338630268,1726818640466,-282.66291029,0.00016438,2]
[338630269,1726818640475,-500.0,0.00016438,2]
[338630270,1726818640485,-500.0,0.00016438,2]
[338630271,1726818640495,-268.51315821,0.00016438,2]
[338630272,1726818640505,-500.0,0.00016438,2]
[338630273,1726818640515,-500.0,0.00016438,2]
[338630274,1726818640524,-500.0,0.00016438,2]
[338630275,1726818640534,-500.0,0.00016438,2]
[338630276,1726818640543,-500.0,0.00016438,2]
[338630277,1726818640553,-500.0,0.00016438,2]
[338630278,1726818640562,-500.26450851,0.00016438,2]
[338630279,1726818640571,-505.36893743,0.00016438,2]
[338630280,1726818640581,-500.0,0.00016438,2]
[338630281,1726818640590,-833.76,0.00016438,2]
[338630282,1726818640599,-500.0,0.00016438,2]
[338630283,1726818640610,-500.0,0.00016438,2]
[338630284,1726818640619,-500.0,0.00016438,2]
[338630285,1726818640629,-513.32,0.00016438,2]
[338630286,1726818640638,-500.0,0.00016438,2]
[338630287,1726818640647,-623.79,0.00016438,2]
[338630288,1726818640656,-500.0,0.00016438,2]
[338630289,1726818640666,-567.2668096,0.00016438,2]
[338630290,1726818640675,-500.0,0.00016438,2]
[338630291,1726818640684,-559.25,0.00016438,2]
[338630292,1726818640694,-500.0,0.00016438,2]
[338630293,1726818640703,-500.0,0.00016438,2]
[338630294,1726818640713,-500.0,0.00016438,2]
[338630295,1726818640722,-500.0,0.00016438,2]
[338630296,1726818640732,-501.04881337,0.00016438,2]
[338630297,1726818640741,-623.05,0.00016438,2]
[338630298,1726818640751,-623.05,0.00016438,2]
[338630299,1726818640759,-623.05,0.00016438,2]
[338630300,1726818640769,-623.05,0.00016438,2]
[338630301,1726818640778,-623.05,0.00016438,2]
[338630302,1726818640787,-500.0,0.00016438,2]
[338630303,1726818640796,-623.05,0.00016438,2]
[338630304,1726818640805,-623.05,0.00016438,2]
[338630305,1726818640815,-623.05,0.00016438,2]
[338630306,1726818640824,-623.05,0.00016438,2]
[338630307,1726818640833,-623.05,0.00016438,2]
[338630308,1726818640843,-623.05,0.00016438,2]
[338630309,1726818640852,-623.05,0.00016438,2]
[338630310,1726818640861,-623.05,0.00016438,2]
[338630311,1726818640870,-623.05,0.00016438,2]
[338630312,1726818640879,-623.05,0.00016438,2]
[338630313,1726818640888,-623.05,0.00016438,2]
[338630314,1726818640897,-623.05,0.00016438,2]
[338630315,1726818640906,-623.05,0.00016438,2]
[338630316,1726818640915,-623.05,0.00016438,2]
[338630317,1726818640924,-623.05,0.00016438,2]
[338630318,1726818640933,-623.05,0.00016438,2]
[338630319,1726818640942,-623.05,0.00016438,2]
[338630320,1726818640951,-623.05,0.00016438,2]
[338630321,1726818640961,-623.21702501,0.00016438,2]
[338630322,1726818640970,-500.0,0.00016438,2]
[338630323,1726818640979,-500.0,0.00016438,2]
[338630324,1726818640989,-500.0,0.00016438,2]
[338630325,1726818640999,-500.0,0.00016438,2]
[338630326,1726818641009,-500.0,0.00016438,2]
[338630327,1726818641018,-500.0,0.00016438,2]
[338630328,1726818641028,-500.0,0.00016438,2]
[338630329,1726818641039,-577.18,0.00016438,2]
[338630330,1726818641048,-527.53,0.00016438,2]
[338630331,1726818641057,-500.0,0.00016438,2]
[338630332,1726818641067,-500.0,0.00016438,2]
[338630333,1726818641076,-500.0,0.00016438,2]
[338630334,1726818641086,-500.0,0.00016438,2]
[338630335,1726818641096,-500.0,0.00016438,2]
[338630336,1726818641105,-307.05,0.00016438,2]
[338630337,1726818641115,-276.72001185,0.00016438,2]
[338630338,1726818641124,-686.91,0.00016438,2]
[338630339,1726818641133,-1225.44,0.00016438,2]
[338630340,1726818641143,-392.1907094,0.00016438,2]
[338630341,1726818641153,-500.0,0.00016438,2]
[338630342,1726818641162,-500.0,0.00016438,2]
[338630343,1726818641171,-500.0,0.00016438,2]
[338630344,1726818641181,-500.0,0.00016438,2]
[338630345,1726818641190,-500.0,0.00016438,2]
[338630346,1726818641199,-500.0,0.00016438,2]
[338630347,1726818641208,-330.81620729,0.00016438,2]
[338630348,1726818641218,-503.29849687,0.00016438,2]
[338630349,1726818641227,-642.7981583,0.00016438,2]
[338630350,1726818641237,-500.0,0.00016438,2]
[338630351,1726818641246,-880.52,0.00016438,2]
[338630352,1726818641256,-500.0,0.00016438,2]
[338630353,1726818641265,-511.77,0.00016438,2]
[338630354,1726818641275,-169.33,0.00016438,2]
[338630355,1726818641284,-500.0,0.00016438,2]
[338630356,1726818641293,-500.0,0.00016438,2]
[338630357,1726818641303,-859.78,0.00016438,2]
[338630358,1726818641312,-500.0,0.00016438,2]
[338630359,1726818641321,-314.22,0.00016438,2]
[338630360,1726818641331,-764.15,0.00016438,2]